[Event "RUS-chT Blitz Women 2018"]
[Site "Sochi"]
[Date "2018.10.10"]
[Round "9"]
[White "Kovanova, Baira"]
[Black "Faizutdinova, Diana"]
[Result "1-0"]
[ECO "A05"]
[WhiteElo "2350"]
[BlackElo "2061"]
[Annotator "RC"]
[PlyCount "53"]
[EventDate "2018.10.10"]
[EventType "swiss"]
[EventCountry "RUS"]
[SourceTitle "playchess.com"]
[Source "ChessBase"]
[SourceQuality "1"]
[TimeControl "180+2"]

1. Nf3 {[%emt 0:00:00]} Nf6 {[%emt 0:00:00]} 2. g3 {[%emt 0:00:00]} g6 {[%emt 0:00:00]} 3. Bg2 {[%emt 0:00:01]} Bg7 {[%emt 0:00:01]} 4. O-O {[%emt 0:00:02]} O-O {[%emt 0:00:02]} 5. d3 {[%emt 0:00:01]} d5 {[%emt 0:00:05]} 6. Nbd2 {[%emt 0:00:03]} c6 {[%emt 0:00:11]} 7. e4 {[%emt 0:00:06]} dxe4 {[%emt 0:00:02]} 8. dxe4 {[%emt 0:00:02]} h6 {[%emt 0:00:04]} 9. Qe2 {[%emt 0:00:07]} Be6 {[%emt 0:00:04]} 10. Nb3 {[%emt 0:00:17]} a5 {[%emt 0:00:24]} 11. Nbd4 {[%emt 0:00:02]} Bc8 {[%emt 0:00:14]} 12. e5 {[%emt 0:00:07]} Nd5 {[%emt 0:00:44]} 13. c3 {[%emt 0:00:10]} e6 {[%emt 0:00:05]} 14. Re1 {[%emt 0:00:25]} Qc7 {[%emt 0:00:09]} 15. h4 {[%emt 0:00:06]} b6 {[%emt 0:00:19]} 16. c4 {[%emt 0:00:13]} Ne7 {[%emt 0:00:06]} 17. Bf4 {[%emt 0:00:01]} Ba6 {[%emt 0:00:17]} 18. Qc2 {[%emt 0:00:15]} Nf5 {[%emt 0:00:23]} 19. Nxf5 {[%emt 0:00:12]} gxf5 {[%emt 0:00:01]} 20. Nd4 {[%emt 0:00:11]} Rd8 {[%emt 0:00:06]} 21. Nb5 {[%emt 0:00:31]} Qe7 {[%emt 0:00:13]} 22. Nd6 {[%emt 0:00:04]} Ra7 {[%emt 0:00:03]} 23. Qc3 {[%emt 0:00:11]} Rad7 {[%emt 0:00:01]} 24. Qe3 {[%emt 0:00:01]} c5 {[%emt 0:00:02]} 25. Bxh6 {[%emt 0:00:02]} Rxd6 {[%emt 0:00:08]} 26. exd6 {[%emt 0:00:03]} Bd4 {[%emt 0:00:01]} 27. dxe7 {[%emt 0:00:03]} 1-0